[Event "VI Sunway Sitges Open 2019"]
[Site "Sitges"]
[Date "2019.12.18"]
[Round "6.51"]
[White "Roch, Florian"]
[Black "Sai Alagappan S"]
[Result "1/2-1/2"]
[ECO "B01"]
[WhiteElo "1979"]
[BlackElo "1591"]
[Annotator "NA"]
[PlyCount "71"]
[EventDate "2019.12.13"]
[EventType "swiss"]
[EventCountry "ESP"]
[SourceTitle "playchess.com"]
[Source "ChessBase"]
[SourceQuality "1"]
[TimeControl "40/5400+30:1800+30"]

1. e4 {[%emt 0:05:50]} d5 {[%emt 0:11:59]} 2. exd5 {[%emt 0:00:00]} Nf6 {[%emt 0:00:22]} 3. Nf3 {[%emt 0:00:00]} Nxd5 {[%emt 0:00:09]} 4. d4 {[%emt 0:00:14]} Nf6 {[%emt 0:00:09]} 5. Bd3 {[%emt 0:01:02]} e6 {[%emt 0:06:22]} 6. Qe2 {[%emt 0:00:00]} c5 {[%emt 0:00:00]} 7. c3 {[%emt 0:01:15]} Nc6 {[%emt 0:02:38]} 8. O-O {[%emt 0:05:37]} Be7 {[%emt 0:09:29]} 9. dxc5 {[%emt 0:01:39]} Bxc5 {[%emt 0:00:00]} 10. b4 {[%emt 0:01:20]} Bd6 {[%emt 0:00:00]} 11. Bb2 {[%emt 0:02:56]} Qc7 {[%emt 0:01:04]} 12. Na3 {[%emt 0:08:30]} Ng4 {[%emt 0:13:39]} 13. g3 {[%emt 0:00:00]} Nge5 {[%emt 0:07:30]} 14. Nb5 {[%emt 0:00:00]} Qb8 {[%emt 0:00:53]} 15. Nxe5 {[%emt 0:02:36]} Bxe5 {[%emt 0:01:23]} 16. Rad1 {[%emt 0:04:56]} a6 {[%emt 0:01:36]} 17. Nd4 {[%emt 0:04:24]} Nxd4 {[%emt 0:10:52]} 18. cxd4 {[%emt 0:00:33]} Bf6 {[%emt 0:00:02]} 19. Be4 {[%emt 0:11:51]} O-O {[%emt 0:02:38]} 20. Qf3 {[%emt 0:02:13]} Ra7 {[%emt 0:01:06]} 21. Bc1 {[%emt 0:01:56]} b5 {[%emt 0:08:35]} 22. Be3 {[%emt 0:01:41]} Rd7 {[%emt 0:02:42]} 23. Bf4 {[%emt 0:03:47]} Qa7 {[%emt 0:02:47]} 24. d5 {[%emt 0:03:50]} exd5 {[%emt 0:02:13]} 25. Rxd5 {[%emt 0:00:17]} Rxd5 {[%emt 0:01:48]} 26. Bxd5 {[%emt 0:03:58]} Be6 {[%emt 0:05:29]} 27. Bxe6 {[%emt 0:00:00]} fxe6 {[%emt 0:00:03]} 28. Qc6 {[%emt 0:00:00]} e5 {[%emt 0:01:43]} 29. Be3 {[%emt 0:00:00]} Qa8 {[%emt 0:00:46]} 30. Qe6+ {[%emt 0:00:00]} Kh8 {[%emt 0:00:16]} 31. Rd1 {[%emt 0:04:10]} Qc8 {[%emt 0:01:31]} 32. Rd7 {[%emt 0:07:05]} Re8 {[%emt 0:04:03]} 33. Qf7 {[%emt 0:00:00]} Rd8 {[%emt 0:01:24]} 34. Rc7 {[%emt 0:05:51]} Qg4 {[%emt 0:00:22]} 35. Rc1 {[%emt 0:07:00]} Qxb4 {[%emt 0:01:23]} 36. Bb6 {[%emt 0:01:22]} 1/2-1/2

[Event "VI Sunway Sitges Open 2019"]
[Site "Sitges"]
[Date "2019.12.18"]
[Round "6.52"]
[White "Gniado, Radoslaw"]
[Black "Henderson Franklin, Matthew"]
[Result "1/2-1/2"]
[ECO "A48"]
[WhiteElo "1819"]
[BlackElo "1611"]
[Annotator "NA"]
[PlyCount "90"]
[EventDate "2019.12.13"]
[EventType "swiss"]
[EventCountry "ESP"]
[SourceTitle "playchess.com"]
[Source "ChessBase"]
[SourceQuality "1"]
[TimeControl "40/5400+30:1800+30"]

1. d4 {[%emt 0:02:13]} Nf6 {[%emt 0:00:00]} 2. Bf4 {[%emt 0:00:11]} g6 {[%emt 0:03:31]} 3. e3 {[%emt 0:00:11]} Bg7 {[%emt 0:00:06]} 4. Nf3 {[%emt 0:00:10]} O-O {[%emt 0:00:22]} 5. Nbd2 {[%emt 0:00:07]} d6 {[%emt 0:00:15]} 6. Be2 {[%emt 0:00:09]} Nbd7 {[%emt 0:00:19]} 7. O-O {[%emt 0:00:22]} h6 {[%emt 0:00:33]} 8. h3 {[%emt 0:00:36]} Nh7 {[%emt 0:01:00]} 9. c3 {[%emt 0:02:38]} e5 {[%emt 0:04:47]} 10. dxe5 {[%emt 0:01:46]} dxe5 {[%emt 0:00:10]} 11. Bg3 {[%emt 0:00:17]} f5 {[%emt 0:02:44]} 12. Qc2 {[%emt 0:09:11]} Qe8 {[%emt 0:11:42]} 13. Rfe1 {[%emt 0:10:42]} Kh8 {[%emt 0:02:05]} 14. Bh2 {[%emt 0:05:23]} Nb6 {[%emt 0:21:28]} 15. Nc4 {[%emt 0:04:32]} Nxc4 {[%emt 0:00:31]} 16. Bxc4 {[%emt 0:00:05]} Qe7 {[%emt 0:03:01]} 17. Rad1 {[%emt 0:01:39]} Ng5 {[%emt 0:00:43]} 18. Nxg5 {[%emt 0:15:15]} Qxg5 {[%emt 0:00:18]} 19. f4 {[%emt 0:04:23]} Qe7 {[%emt 0:03:40]} 20. fxe5 {[%emt 0:01:26]} Bxe5 {[%emt 0:01:21]} 21. Bxe5+ {[%emt 0:02:27]} Qxe5 {[%emt 0:00:09]} 22. Qd2 {[%emt 0:01:28]} Be6 {[%emt 0:02:47]} 23. Bxe6 {[%emt 0:04:07]} Qxe6 {[%emt 0:00:13]} 24. Qd7 {[%emt 0:08:13]} Qb6 {[%emt 0:03:39]} 25. Rd4 {[%emt 0:06:01]} Rad8 {[%emt 0:07:19]} 26. Qe7 {[%emt 0:00:53]} Rde8 {[%emt 0:02:14]} 27. Qh4 {[%emt 0:00:42]} g5 {[%emt 0:02:47]} 28. Qh5 {[%emt 0:01:24]} Re7 {[%emt 0:07:32]} 29. Qe2 {[%emt 0:05:07]} Rfe8 {[%emt 0:00:54]} 30. Qd2 {[%emt 0:00:29]} f4 {[%emt 0:05:41]} 31. e4 {[%emt 0:00:37]} Rxe4 {[%emt 0:00:40]} 32. Rexe4 {[%emt 0:00:54]} Rxe4 {[%emt 0:00:08]} 33. Kh2 {[%emt 0:00:08]} Rxd4 {[%emt 0:01:13]} 34. cxd4 {[%emt 0:00:05]} Qe6 {[%emt 0:03:11]} 35. Qb4 {[%emt 0:01:49]} b6 {[%emt 0:02:34]} 36. Qf8+ {[%emt 0:00:55]} Kh7 {[%emt 0:00:09]} 37. Qd8 {[%emt 0:00:58]} Qd6 {[%emt 0:00:35]} 38. Qc8 {[%emt 0:00:56]} f3+ {[%emt 0:01:16]} 39. g3 {[%emt 0:00:10]} Kg6 {[%emt 0:02:54]} 40. Qe8+ {[%emt 0:00:00]} Kg7 {[%emt 0:00:00]} 41. Qe4 {[%emt 0:01:56]} Qf6 {[%emt 0:01:29]} 42. Kg1 {[%emt 0:00:14]} f2+ {[%emt 0:01:07]} 43. Kf1 {[%emt 0:00:11]} Qf7 {[%emt 0:05:16]} 44. Qe5+ {[%emt 0:00:52]} Kg8 {[%emt 0:02:35]} 45. b3 {[%emt 0:02:44]} a5 {[%emt 0:01:30]} 1/2-1/2

[Event "VI Sunway Sitges Open 2019"]
[Site "Sitges"]
[Date "2019.12.18"]
[Round "6.53"]
[White "Manmay Chopra"]
[Black "Franzoni Ladron de Guevara, Enric"]
[Result "1-0"]
[ECO "D78"]
[WhiteElo "1354"]
[BlackElo "1798"]
[Annotator "NA"]
[PlyCount "93"]
[EventDate "2019.12.13"]
[EventType "swiss"]
[EventCountry "ESP"]
[SourceTitle "playchess.com"]
[Source "ChessBase"]
[SourceQuality "1"]
[TimeControl "40/5400+30:1800+30"]

1. d4 {[%emt 0:04:16]} d5 {[%emt 0:00:00]} 2. Nf3 {[%emt 0:00:10]} Nf6 {[%emt 0:00:00]} 3. g3 {[%emt 0:00:08]} g6 {[%emt 0:00:00]} 4. Bg2 {[%emt 0:00:11]} Bg7 {[%emt 0:00:00]} 5. O-O {[%emt 0:00:10]} O-O {[%emt 0:00:00]} 6. c4 {[%emt 0:00:07]} c6 {[%emt 0:00:00]} 7. b3 {[%emt 0:00:43]} Nbd7 {[%emt 0:00:22]} 8. Bb2 {[%emt 0:01:12]} Ne4 {[%emt 0:01:08]} 9. Nbd2 {[%emt 0:02:20]} Ndf6 {[%emt 0:00:51]} 10. Qc2 {[%emt 0:03:09]} Bf5 {[%emt 0:00:47]} 11. Qc1 {[%emt 0:02:52]} Rc8 {[%emt 0:01:17]} 12. Ne5 {[%emt 0:09:06]} Bh6 {[%emt 0:02:14]} 13. e3 {[%emt 0:02:45]} Nxd2 {[%emt 0:02:31]} 14. Qxd2 {[%emt 0:01:05]} Ne4 {[%emt 0:00:06]} 15. Qd1 {[%emt 0:09:23]} f6 {[%emt 0:05:01]} 16. Ng4 {[%emt 0:04:17]} Bg7 {[%emt 0:01:52]} 17. f4 {[%emt 0:00:25]} Qd7 {[%emt 0:00:53]} 18. Nf2 {[%emt 0:01:05]} Nxf2 {[%emt 0:00:48]} 19. Rxf2 {[%emt 0:01:18]} Bg4 {[%emt 0:00:37]} 20. Qf1 {[%emt 0:06:45]} f5 {[%emt 0:01:45]} 21. Rc1 {[%emt 0:04:03]} Rcd8 {[%emt 0:03:50]} 22. cxd5 {[%emt 0:01:01]} cxd5 {[%emt 0:00:50]} 23. Rfc2 {[%emt 0:00:47]} Qe6 {[%emt 0:01:38]} 24. Kf2 {[%emt 0:03:26]} Rd6 {[%emt 0:02:08]} 25. Qb5 {[%emt 0:01:10]} b6 {[%emt 0:00:45]} 26. Ba3 {[%emt 0:01:42]} Rd7 {[%emt 0:01:36]} 27. Rc6 {[%emt 0:02:22]} Qf7 {[%emt 0:01:24]} 28. Rxb6 {[%emt 0:01:51]} Rfd8 {[%emt 0:01:06]} 29. Rbc6 {[%emt 0:04:35]} Bf6 {[%emt 0:02:24]} 30. Qa6 {[%emt 0:02:10]} g5 {[%emt 0:01:39]} 31. Bc5 {[%emt 0:04:49]} gxf4 {[%emt 0:01:07]} 32. exf4 {[%emt 0:00:05]} Qg7 {[%emt 0:00:46]} 33. Qd3 {[%emt 0:03:00]} Qh6 {[%emt 0:02:06]} 34. Kg1 {[%emt 0:01:17]} e6 {[%emt 0:02:00]} 35. Re1 {[%emt 0:01:18]} Re8 {[%emt 0:02:46]} 36. Kh1 {[%emt 0:00:33]} Kf7 {[%emt 0:02:38]} 37. Qe3 {[%emt 0:01:58]} Bd8 {[%emt 0:01:11]} 38. Ra6 {[%emt 0:01:03]} Bh3 {[%emt 0:04:04]} 39. Bf3 {[%emt 0:01:32]} Bb6 {[%emt 0:01:35]} 40. Bxb6 {[%emt 0:00:00]} axb6 {[%emt 0:00:00]} 41. Rxb6 {[%emt 0:00:51]} Rdd8 {[%emt 0:04:22]} 42. Rc6 {[%emt 0:02:33]} Rd7 {[%emt 0:02:07]} 43. Rec1 {[%emt 0:00:49]} Ree7 {[%emt 0:00:48]} 44. Qe5 {[%emt 0:01:06]} Bg4 {[%emt 0:00:55]} 45. Bxg4 {[%emt 0:00:48]} fxg4 {[%emt 0:00:21]} 46. a4 {[%emt 0:04:38]} Qh3 {[%emt 0:00:53]} 47. f5 {[%emt 0:02:28]} 1-0

[Event "VI Sunway Sitges Open 2019"]
[Site "Sitges"]
[Date "2019.12.18"]
[Round "6.54"]
[White "Haisma, Henk"]
[Black "Colom Riera, Marc"]
[Result "1-0"]
[ECO "B12"]
[WhiteElo "1718"]
[BlackElo "1505"]
[Annotator "NA"]
[PlyCount "41"]
[EventDate "2019.12.13"]
[EventType "swiss"]
[EventCountry "ESP"]
[SourceTitle "playchess.com"]
[Source "ChessBase"]
[SourceQuality "1"]
[TimeControl "40/5400+30:1800+30"]

1. e4 {[%emt 3:03:44]} c6 {[%emt 0:00:09]} 2. d4 {[%emt 0:00:17]} d5 {[%emt 0:00:11]} 3. e5 {[%emt 0:00:09]} Bf5 {[%emt 0:00:37]} 4. h4 {[%emt 0:00:18]} h6 {[%emt 0:00:58]} 5. g4 {[%emt 0:01:08]} Bc8 {[%emt 0:04:19]} 6. Be3 {[%emt 0:01:08]} e6 {[%emt 0:00:14]} 7. Bd3 {[%emt 0:01:48]} Nd7 {[%emt 0:00:31]} 8. Nd2 {[%emt 0:01:09]} c5 {[%emt 0:02:50]} 9. c3 {[%emt 0:00:40]} cxd4 {[%emt 0:05:07]} 10. cxd4 {[%emt 0:04:32]} Bb4 {[%emt 0:01:58]} 11. f4 {[%emt 0:01:14]} Ne7 {[%emt 0:01:38]} 12. Ngf3 {[%emt 0:00:36]} Nc6 {[%emt 0:06:50]} 13. Qe2 {[%emt 0:04:04]} Qe7 {[%emt 0:03:44]} 14. f5 {[%emt 0:02:27]} Qf8 {[%emt 0:06:20]} 15. fxe6 {[%emt 0:02:49]} fxe6 {[%emt 0:00:16]} 16. Bg6+ {[%emt 0:00:13]} Kd8 {[%emt 0:00:35]} 17. Rf1 {[%emt 0:00:37]} Bxd2+ {[%emt 0:01:12]} 18. Qxd2 {[%emt 0:01:23]} Qb4 {[%emt 0:00:21]} 19. Qxb4 {[%emt 0:00:56]} Nxb4 {[%emt 0:01:04]} 20. Nd2 {[%emt 0:01:53]} Nc2+ {[%emt 0:01:02]} 21. Bxc2 {[%emt 0:00:12]} 1-0

[Event "VI Sunway Sitges Open 2019"]
[Site "Sitges"]
[Date "2019.12.19"]
[Round "7.6"]
[White "Nasuta, Grzegorz"]
[Black "Gareyev, Timur"]
[Result "1/2-1/2"]
[ECO "C45"]
[WhiteElo "2545"]
[BlackElo "2598"]
[Annotator "ChessBase"]
[PlyCount "135"]
[EventDate "2019.12.13"]
[EventType "swiss"]
[EventCountry "ESP"]
[SourceTitle "playchess.com"]
[Source "ChessBase"]
[SourceQuality "1"]
[TimeControl "40/5400+30:1800+30"]

1. e4 {[%emt 0:00:00]} e5 {[%emt 0:07:38]} 2. Nf3 {[%emt 0:00:00]} Nc6 {[%emt 0:00:17]} 3. d4 {[%emt 0:00:08]} exd4 {[%emt 0:00:07]} 4. Nxd4 {[%emt 0:00:05]} Bb4+ {[%emt 0:02:51]} 5. c3 {[%emt 0:00:59]} Be7 {[%emt 0:01:27]} 6. Nxc6 {[%emt 0:01:53]} bxc6 {[%emt 0:00:17]} 7. Bd3 {[%emt 0:02:10]} d6 {[%emt 0:04:17]} 8. O-O {[%emt 0:00:28]} Nf6 {[%emt 0:00:06]} 9. Nd2 {[%emt 0:03:39]} O-O {[%emt 0:00:51]} 10. f4 {[%emt 0:02:37]} a5 {[%emt 0:00:20]} 11. Nf3 {[%emt 0:05:00]} Ba6 {[%emt 0:02:00]} 12. Bxa6 {[%emt 0:22:02]} Rxa6 {[%emt 0:01:16]} 13. Be3 {[%emt 0:01:09]} Qc8 {[%emt 0:14:55]} 14. Qd3 {[%emt 0:01:54]} Ng4 {[%emt 0:09:10]} 15. Bd2 {[%emt 0:10:14]} Rb6 {[%emt 0:03:13]} 16. b3 {[%emt 0:08:26]} a4 {[%emt 0:15:19]} 17. b4 {[%emt 0:11:19]} Qa6 {[%emt 0:00:03]} 18. Qxa6 {[%emt 0:10:14]} Rxa6 {[%emt 0:00:02]} 19. Rae1 {[%emt 0:00:10]} a3 {[%emt 0:06:01]} 20. Nd4 {[%emt 0:05:14]} Rd8 {[%emt 0:01:35]} 21. Re2 {[%emt 0:05:15]} Rb6 {[%emt 0:07:32]} 22. Nb3 {[%emt 0:04:25]} Nf6 {[%emt 0:02:29]} 23. Bc1 {[%emt 0:00:25]} Ra8 {[%emt 0:02:31]} 24. e5 {[%emt 0:03:09]} dxe5 {[%emt 0:11:18]} 25. Rxe5 {[%emt 0:00:05]} Bd6 {[%emt 0:00:04]} 26. Ra5 {[%emt 0:00:06]} Re8 {[%emt 0:00:00]} 27. Bxa3 {[%emt 0:00:54]} Nd5 {[%emt 0:01:51]} 28. Bc1 {[%emt 0:01:26]} Nxc3 {[%emt 0:00:25]} 29. a3 {[%emt 0:00:09]} Ne2+ {[%emt 0:01:27]} 30. Kf2 {[%emt 0:00:07]} Nxf4 {[%emt 0:02:04]} 31. Bxf4 {[%emt 0:00:06]} Bxf4 {[%emt 0:00:04]} 32. Re1 {[%emt 0:00:07]} Rd8 {[%emt 0:00:08]} 33. g3 {[%emt 0:00:25]} Bd6 {[%emt 0:00:01]} 34. Rc1 {[%emt 0:01:23]} f6 {[%emt 0:01:34]} 35. Rc4 {[%emt 0:00:29]} Be5 {[%emt 0:00:10]} 36. Ke2 {[%emt 0:01:03]} Rd5 {[%emt 0:02:06]} 37. Ra8+ {[%emt 0:00:39]} Kf7 {[%emt 0:00:02]} 38. Nc5 {[%emt 0:00:11]} Bd6 {[%emt 0:00:49]} 39. Ne4 {[%emt 0:00:22]} f5 {[%emt 0:01:37]} 40. Nc3 {[%emt 0:00:00]} Re5+ {[%emt 0:00:00]} 41. Kf2 {[%emt 0:14:11]} Re8 {[%emt 0:02:14]} 42. Ra7 {[%emt 0:04:05]} Ke6 {[%emt 0:09:55]} 43. Na4 {[%emt 0:00:33]} Rbb8 {[%emt 0:00:28]} 44. Rxc6 {[%emt 0:02:18]} Ra8 {[%emt 0:01:06]} 45. Raa6 {[%emt 0:02:35]} f4 {[%emt 0:09:29]} 46. gxf4 {[%emt 0:02:35]} Kf5 {[%emt 0:06:33]} 47. Nc3 {[%emt 0:03:47]} Rxa6 {[%emt 0:00:24]} 48. Rxa6 {[%emt 0:00:02]} Bxf4 {[%emt 0:00:13]} 49. h3 {[%emt 0:00:12]} Be5 {[%emt 0:01:30]} 50. Rc6 {[%emt 0:01:07]} Bd4+ {[%emt 0:02:43]} 51. Kg2 {[%emt 0:00:05]} Re3 {[%emt 0:00:09]} 52. Nb5 {[%emt 0:04:40]} Be5 {[%emt 0:00:01]} 53. a4 {[%emt 0:00:28]} Re4 {[%emt 0:00:41]} 54. a5 {[%emt 0:01:07]} Rxb4 {[%emt 0:00:02]} 55. Nxc7 {[%emt 0:00:04]} Rb2+ {[%emt 0:01:33]} 56. Kf1 {[%emt 0:01:03]} Ke4 {[%emt 0:00:50]} 57. a6 {[%emt 0:00:13]} Kf3 {[%emt 0:01:25]} 58. Ke1 {[%emt 0:00:53]} Bd4 {[%emt 0:01:14]} 59. Kd1 {[%emt 0:00:27]} Be3 {[%emt 0:00:31]} 60. Rc3 {[%emt 0:00:18]} Rb1+ {[%emt 0:00:28]} 61. Kc2 {[%emt 0:00:04]} Rc1+ {[%emt 0:00:03]} 62. Kb3 {[%emt 0:00:11]} Rxc3+ {[%emt 0:00:07]} 63. Kxc3 {[%emt 0:00:03]} Kg3 {[%emt 0:01:14]} 64. Ne6 {[%emt 0:01:11]} Ba7 {[%emt 0:00:27]} 65. Nxg7 {[%emt 0:01:17]} Kxh3 {[%emt 0:00:05]} 66. Kc4 {[%emt 0:00:29]} Kg4 {[%emt 0:00:05]} 67. Kd5 {[%emt 0:00:05]} h5 {[%emt 0:00:35]} 68. Nxh5 {[%emt 0:00:12]} 1/2-1/2

[Event "VI Sunway Sitges Open 2019"]
[Site "Sitges"]
[Date "2019.12.19"]
[Round "7.12"]
[White "Nihal Sarin"]
[Black "Girish, A. Koushik"]
[Result "1/2-1/2"]
[ECO "A14"]
[WhiteElo "2612"]
[BlackElo "2506"]
[Annotator "RC"]
[PlyCount "125"]
[EventDate "2019.12.13"]
[EventType "swiss"]
[EventCountry "ESP"]
[SourceTitle "playchess.com"]
[Source "ChessBase"]
[SourceQuality "1"]
[TimeControl "40/5400+30:1800+30"]

1. c4 {[%emt 0:03:24]} e6 {[%emt 0:00:03]} 2. Nf3 {[%emt 0:00:06]} Nf6 {[%emt 0:00:07]} 3. g3 {[%emt 0:00:05]} d5 {[%emt 0:00:07]} 4. Bg2 {[%emt 0:00:05]} Be7 {[%emt 0:01:15]} 5. O-O {[%emt 0:00:11]} O-O {[%emt 0:00:04]} 6. b3 {[%emt 0:00:06]} c5 {[%emt 0:02:06]} 7. Bb2 {[%emt 0:01:46]} Nc6 {[%emt 0:00:06]} 8. cxd5 {[%emt 0:00:39]} Nxd5 {[%emt 0:00:13]} 9. d4 {[%emt 0:00:15]} cxd4 {[%emt 0:01:37]} 10. Nxd4 {[%emt 0:00:19]} Bf6 {[%emt 0:12:43]} 11. Na3 {[%emt 0:31:01]} Ndb4 {[%emt 0:17:26]} 12. Nxc6 {[%emt 0:14:14]} bxc6 {[%emt 0:03:33]} 13. Qxd8 {[%emt 0:17:03]} Rxd8 {[%emt 0:00:10]} 14. Bxf6 {[%emt 0:00:01]} gxf6 {[%emt 0:00:08]} 15. Nc4 {[%emt 0:00:02]} Ba6 {[%emt 0:00:29]} 16. Rfc1 {[%emt 0:00:17]} Rac8 {[%emt 0:01:10]} 17. a3 {[%emt 0:03:45]} Nd5 {[%emt 0:00:25]} 18. e3 {[%emt 0:03:14]} c5 {[%emt 0:05:46]} 19. Na5 {[%emt 0:03:46]} Rd7 {[%emt 0:04:34]} 20. Bf1 {[%emt 0:05:28]} Bxf1 {[%emt 0:01:51]} 21. Kxf1 {[%emt 0:00:01]} Nb6 {[%emt 0:00:42]} 22. Rc2 {[%emt 0:00:21]} f5 {[%emt 0:07:03]} 23. Rac1 {[%emt 0:00:14]} Rdc7 {[%emt 0:00:17]} 24. Ke2 {[%emt 0:00:01]} Kg7 {[%emt 0:03:25]} 25. Nc4 {[%emt 0:04:42]} Rc6 {[%emt 0:05:48]} 26. Ne5 {[%emt 0:00:53]} R6c7 {[%emt 0:00:05]} 27. Nc4 {[%emt 0:00:06]} Rc6 {[%emt 0:00:39]} 28. Na5 {[%emt 0:00:54]} R6c7 {[%emt 0:00:12]} 29. Kf3 {[%emt 0:00:11]} Kf6 {[%emt 0:01:05]} 30. e4 {[%emt 0:04:28]} fxe4+ {[%emt 0:02:40]} 31. Kxe4 {[%emt 0:00:01]} h6 {[%emt 0:06:53]} 32. f4 {[%emt 0:00:52]} h5 {[%emt 0:01:36]} 33. Kf3 {[%emt 0:00:58]} Kg7 {[%emt 0:04:15]} 34. Ke2 {[%emt 0:01:28]} Nd5 {[%emt 0:07:08]} 35. Nc4 {[%emt 0:00:22]} h4 {[%emt 0:02:18]} 36. Nd2 {[%emt 0:02:03]} hxg3 {[%emt 0:00:11]} 37. hxg3 {[%emt 0:00:01]} Rh8 {[%emt 0:01:36]} 38. Ne4 {[%emt 0:00:17]} Nf6 {[%emt 0:03:57]} 39. Nxc5 {[%emt 0:02:29]} Rc6 {[%emt 0:00:23]} 40. Kf3 {[%emt 0:00:00]} Rd6 {[%emt 0:00:00]} 41. b4 {[%emt 0:08:16]} Rd4 {[%emt 0:05:20]} 42. Re1 {[%emt 0:02:22]} Kg6 {[%emt 0:00:18]} 43. Rce2 {[%emt 0:15:44]} Nd5 {[%emt 0:02:17]} 44. Re4 {[%emt 0:00:55]} Rd2 {[%emt 0:00:44]} 45. R4e2 {[%emt 0:00:01]} Rd4 {[%emt 0:00:14]} 46. Kg2 {[%emt 0:01:23]} Nc3 {[%emt 0:00:51]} 47. Rc2 {[%emt 0:00:59]} Nd5 {[%emt 0:02:29]} 48. Rf2 {[%emt 0:01:10]} a5 {[%emt 0:03:44]} 49. bxa5 {[%emt 0:01:31]} Rc8 {[%emt 0:00:21]} 50. Ne4 {[%emt 0:03:21]} Ra8 {[%emt 0:02:17]} 51. Nd2 {[%emt 0:01:14]} Ra4 {[%emt 0:01:27]} 52. Nf3 {[%emt 0:01:04]} R4xa5 {[%emt 0:01:55]} 53. f5+ {[%emt 0:00:26]} Kg7 {[%emt 0:04:06]} 54. fxe6 {[%emt 0:00:07]} fxe6 {[%emt 0:00:04]} 55. Rxe6 {[%emt 0:00:49]} Rxa3 {[%emt 0:00:13]} 56. Nd4 {[%emt 0:00:04]} Ra2 {[%emt 0:01:11]} 57. Rxa2 {[%emt 0:01:14]} Rxa2+ {[%emt 0:00:05]} 58. Kf3 {[%emt 0:00:38]} Nf6 {[%emt 0:00:36]} 59. g4 {[%emt 0:00:34]} Kg6 {[%emt 0:03:58]} 60. Kf4 {[%emt 0:00:11]} Ra5 {[%emt 0:00:34]} 61. Re5 {[%emt 0:00:22]} Rxe5 {[%emt 0:00:05]} 62. Kxe5 {[%emt 0:00:02]} Nxg4+ {[%emt 0:00:06]} 63. Ke4 {[%emt 0:00:15]} 1/2-1/2

[Event "VI Sunway Sitges Open 2019"]
[Site "Sitges"]
[Date "2019.12.19"]
[Round "7.13"]
[White "Salgado Lopez, Ivan"]
[Black "Kelires, Andreas"]
[Result "1-0"]
[ECO "A07"]
[WhiteElo "2605"]
[BlackElo "2510"]
[Annotator "RC"]
[PlyCount "59"]
[EventDate "2019.12.13"]
[EventType "swiss"]
[EventCountry "ESP"]
[SourceTitle "playchess.com"]
[Source "ChessBase"]
[SourceQuality "1"]
[TimeControl "40/5400+30:1800+30"]

1. Nf3 {[%emt 0:01:26]} d5 {[%emt 0:00:00]} 2. g3 {[%emt 0:00:11]} c6 {[%emt 0:00:34]} 3. Bg2 {[%emt 0:00:34]} Nf6 {[%emt 0:00:27]} 4. O-O {[%emt 0:00:13]} Bf5 {[%emt 0:01:17]} 5. Nh4 {[%emt 0:07:19]} Be4 {[%emt 0:16:43]} 6. f3 {[%emt 0:00:25]} Bg6 {[%emt 0:00:04]} 7. d4 {[%emt 0:01:20]} Nbd7 {[%emt 0:01:19]} 8. Nxg6 {[%emt 0:09:47]} hxg6 {[%emt 0:00:16]} 9. f4 {[%emt 0:00:15]} e6 {[%emt 0:05:26]} 10. c4 {[%emt 0:00:30]} dxc4 {[%emt 0:05:51]} 11. Nc3 {[%emt 0:00:59]} Qa5 {[%emt 0:04:22]} 12. e3 {[%emt 0:02:34]} O-O-O {[%emt 0:09:03]} 13. Bd2 {[%emt 0:01:23]} Nb6 {[%emt 0:12:50]} 14. Qe2 {[%emt 0:04:23]} Qa6 {[%emt 0:08:38]} 15. a4 {[%emt 0:06:02]} Kb8 {[%emt 0:05:48]} 16. Rfc1 {[%emt 0:05:47]} Nbd5 {[%emt 0:03:08]} 17. b3 {[%emt 0:12:05]} Nxc3 {[%emt 0:11:25]} 18. Bxc3 {[%emt 0:04:53]} Nd5 {[%emt 0:01:30]} 19. bxc4 {[%emt 0:01:03]} Nxc3 {[%emt 0:00:40]} 20. Rxc3 {[%emt 0:00:18]} Be7 {[%emt 0:02:03]} 21. Rb3 {[%emt 0:06:49]} Rd7 {[%emt 0:00:07]} 22. a5 {[%emt 0:04:01]} Rh5 {[%emt 0:00:13]} 23. Qa2 {[%emt 0:01:56]} Bf6 {[%emt 0:05:41]} 24. c5 {[%emt 0:05:36]} Rxc5 {[%emt 0:00:05]} 25. Bf1 {[%emt 0:05:27]} Rb5 {[%emt 0:00:03]} 26. Bxb5 {[%emt 0:00:31]} cxb5 {[%emt 0:00:01]} 27. Rc1 {[%emt 0:02:00]} Bd8 {[%emt 0:00:46]} 28. Rbc3 {[%emt 0:01:53]} Rc7 {[%emt 0:00:04]} 29. Qa3 {[%emt 0:01:02]} Rc6 {[%emt 0:01:44]} 30. Qd6+ {[%emt 0:00:21]} 1-0

[Event "VI Sunway Sitges Open 2019"]
[Site "Sitges"]
[Date "2019.12.19"]
[Round "7.14"]
[White "Svane, Rasmus"]
[Black "Garriga Cazorla, Pere"]
[Result "1-0"]
[ECO "E04"]
[WhiteElo "2597"]
[BlackElo "2484"]
[Annotator "ChessBase"]
[PlyCount "67"]
[EventDate "2019.12.13"]
[EventType "swiss"]
[EventCountry "ESP"]
[SourceTitle "playchess.com"]
[Source "ChessBase"]
[SourceQuality "1"]
[TimeControl "40/5400+30:1800+30"]

1. d4 {[%emt 0:00:00]} Nf6 {[%emt 0:00:00]} 2. c4 {[%emt 0:00:00]} e6 {[%emt 0:00:00]} 3. Nf3 {[%emt 0:00:00]} d5 {[%emt 0:00:22]} 4. g3 {[%emt 0:00:28]} dxc4 {[%emt 0:01:18]} 5. Bg2 {[%emt 0:00:13]} Nbd7 {[%emt 0:00:15]} 6. O-O {[%emt 0:00:14]} Rb8 {[%emt 0:00:35]} 7. a4 {[%emt 0:00:11]} a6 {[%emt 0:09:33]} 8. a5 {[%emt 0:00:05]} b5 {[%emt 0:26:04]} 9. axb6 {[%emt 0:00:28]} Rxb6 {[%emt 0:00:09]} 10. Nfd2 {[%emt 0:24:27]} Rb4 {[%emt 0:13:46]} 11. Na3 {[%emt 0:03:00]} Nb6 {[%emt 0:05:59]} 12. Nc2 {[%emt 0:03:17]} Rb5 {[%emt 0:00:38]} 13. Bc6+ {[%emt 0:03:04]} Bd7 {[%emt 0:00:30]} 14. Bxb5 {[%emt 0:02:29]} axb5 {[%emt 0:02:28]} 15. Nf3 {[%emt 0:07:47]} Bd6 {[%emt 0:06:23]} 16. Ne5 {[%emt 0:08:03]} O-O {[%emt 0:00:32]} 17. Bg5 {[%emt 0:01:24]} Be8 {[%emt 0:02:54]} 18. Ng4 {[%emt 0:11:12]} Bc6 {[%emt 0:03:14]} 19. d5 {[%emt 0:10:34]} exd5 {[%emt 0:04:09]} 20. Bxf6 {[%emt 0:03:09]} gxf6 {[%emt 0:00:07]} 21. Qd4 {[%emt 0:00:25]} Kg7 {[%emt 0:02:14]} 22. Qe3 {[%emt 0:03:22]} Kh8 {[%emt 0:02:59]} 23. Qh6 {[%emt 0:01:43]} Be7 {[%emt 0:00:07]} 24. Nd4 {[%emt 0:08:20]} Bd7 {[%emt 0:00:05]} 25. Qh5 {[%emt 0:00:18]} Rg8 {[%emt 0:02:45]} 26. Nh6 {[%emt 0:00:45]} Rg7 {[%emt 0:03:37]} 27. Nxf7+ {[%emt 0:01:46]} Rxf7 {[%emt 0:00:17]} 28. Qxf7 {[%emt 0:00:08]} Be8 {[%emt 0:00:07]} 29. Qe6 {[%emt 0:00:35]} Bd7 {[%emt 0:00:28]} 30. Qf7 {[%emt 0:00:07]} Be8 {[%emt 0:00:18]} 31. Qe6 {[%emt 0:00:09]} Bd7 {[%emt 0:00:04]} 32. Qe3 {[%emt 0:00:05]} Na4 {[%emt 0:00:01]} 33. Ne6 {[%emt 0:02:55]} Qc8 {[%emt 0:00:30]} 34. Nxc7 {[%emt 0:01:05]} 1-0